[Event "Titled Tuesday Blitz February 22 Early 2022"]
[White "Hakemi, Arman"]
[Black "Sviridov, Valery"]
[WhiteFideId "22520805"]
[BlackFideId "4120680"]
[WhiteElo "2208"]
[BlackElo "2454"]
[Result "0-1"]
[Round "05"]
[TimeControl "180+1"]
[Date "2022.02.22"]
[WhiteClock "0:00:14"]
[BlackClock "0:00:33"]

1. e4 {[%clk 0:03:00]}  e5 {[%clk 0:02:59]} 2. Nf3 {[%clk 0:02:53]}  Nc6 {[%clk 0:02:59]} 3. Nc3 {[%clk 0:02:52]}  g6 {[%clk 0:02:58]} 4. d4 {[%clk 0:02:52]}  exd4 {[%clk 0:02:59]} 5. Nxd4 {[%clk 0:02:53]}  Bg7 {[%clk 0:02:59]} 6. Be3 {[%clk 0:02:54]}  Nge7 {[%clk 0:02:59]} 7. Qd2 {[%clk 0:02:53]}  O-O {[%clk 0:02:56]} 8. O-O-O {[%clk 0:02:54]}  d5 {[%clk 0:02:57]} 9. exd5 {[%clk 0:02:49]}  Nxd5 {[%clk 0:02:56]} 10. Bg5 {[%clk 0:02:49]}  Qd7 {[%clk 0:02:52]} 11. Nxc6 {[%clk 0:02:47]}  bxc6 {[%clk 0:02:52]} 12. Nxd5 {[%clk 0:02:47]}  cxd5 {[%clk 0:02:52]} 13. Qxd5 {[%clk 0:02:48]}  Qa4 {[%clk 0:02:39]} 14. Qc4 {[%clk 0:01:56]}  Qe8 {[%clk 0:02:11]} 15. Qc5 {[%clk 0:01:14]}  Be6 {[%clk 0:02:06]} 16. b3 {[%clk 0:00:59]}  a5 {[%clk 0:01:17]} 17. Bb5 {[%clk 0:00:58]}  Qb8 {[%clk 0:01:18]} 18. a4 {[%clk 0:00:47]}  c6 {[%clk 0:01:18]} 19. Bxc6 {[%clk 0:00:38]}  Ra6 {[%clk 0:01:10]} 20. Bb5 {[%clk 0:00:35]}  Ra7 {[%clk 0:01:03]} 21. Qxf8+ {[%clk 0:00:27]}  Bxf8 {[%clk 0:00:54]} 22. Rd8 {[%clk 0:00:28]}  Qc7 {[%clk 0:00:33]} 23. Rhd1 {[%clk 0:00:22]}  Kg7 {[%clk 0:00:33]} 24. Kb2 {[%clk 0:00:17]}  Qe5+ {[%clk 0:00:32]} 25. Ka2 {[%clk 0:00:14]}  Qxg5 {[%clk 0:00:33]} 0-1


[Site "https://www.chess.com"]

[Event "Titled Tuesday Blitz February 22 Early 2022"]
[White "Indjic, Aleksandar"]
[Black "Mikhailov, Viacheslav"]
[WhiteFideId "911925"]
[BlackFideId "4187369"]
[WhiteElo "2616"]
[BlackElo "2381"]
[Result "1-0"]
[Round "05"]
[TimeControl "180+1"]
[Date "2022.02.22"]
[WhiteClock "0:01:02"]
[BlackClock "0:00:03"]

1. c4 {[%clk 0:03:00]}  Nf6 {[%clk 0:02:59]} 2. Nc3 {[%clk 0:02:57]}  g6 {[%clk 0:03:00]} 3. d4 {[%clk 0:02:55]}  Bg7 {[%clk 0:03:00]} 4. Bg5 {[%clk 0:02:54]}  O-O {[%clk 0:03:01]} 5. e3 {[%clk 0:02:53]}  d6 {[%clk 0:03:01]} 6. Be2 {[%clk 0:02:45]}  c5 {[%clk 0:03:01]} 7. d5 {[%clk 0:02:44]}  Qa5 {[%clk 0:02:56]} 8. Qd2 {[%clk 0:02:38]}  e6 {[%clk 0:02:40]} 9. Nf3 {[%clk 0:02:35]}  exd5 {[%clk 0:02:39]} 10. Bxf6 {[%clk 0:02:27]}  Bxf6 {[%clk 0:02:40]} 11. Nxd5 {[%clk 0:02:26]}  Qxd2+ {[%clk 0:02:12]} 12. Nxd2 {[%clk 0:02:25]}  Bd8 {[%clk 0:02:13]} 13. Ne4 {[%clk 0:02:24]}  Ba5+ {[%clk 0:02:05]} 14. Kf1 {[%clk 0:02:23]}  Nc6 {[%clk 0:01:39]} 15. Nxd6 {[%clk 0:02:22]}  Rd8 {[%clk 0:01:36]} 16. Nxc8 {[%clk 0:02:19]}  Raxc8 {[%clk 0:01:37]} 17. a3 {[%clk 0:02:19]}  Rd6 {[%clk 0:01:30]} 18. g3 {[%clk 0:02:16]}  Kf8 {[%clk 0:01:28]} 19. Bf3 {[%clk 0:02:15]}  Ne5 {[%clk 0:01:27]} 20. Be2 {[%clk 0:02:14]}  b5 {[%clk 0:01:27]} 21. b3 {[%clk 0:02:13]}  bxc4 {[%clk 0:01:26]} 22. Bxc4 {[%clk 0:02:07]}  Rcd8 {[%clk 0:01:06]} 23. Rd1 {[%clk 0:01:53]}  Nxc4 {[%clk 0:00:41]} 24. bxc4 {[%clk 0:01:51]}  Rb8 {[%clk 0:00:40]} 25. Kg2 {[%clk 0:01:51]}  Rb3 {[%clk 0:00:40]} 26. a4 {[%clk 0:01:47]}  Ra6 {[%clk 0:00:33]} 27. Rb1 {[%clk 0:01:45]}  Rxb1 {[%clk 0:00:27]} 28. Rxb1 {[%clk 0:01:46]}  Bb4 {[%clk 0:00:18]} 29. Ra1 {[%clk 0:01:46]}  Re6 {[%clk 0:00:14]} 30. Kf3 {[%clk 0:01:45]}  a5 {[%clk 0:00:14]} 31. Ke2 {[%clk 0:01:45]}  h5 {[%clk 0:00:13]} 32. Kd3 {[%clk 0:01:45]}  Kg7 {[%clk 0:00:13]} 33. h4 {[%clk 0:01:43]}  Re5 {[%clk 0:00:13]} 34. f4 {[%clk 0:01:41]}  Re8 {[%clk 0:00:13]} 35. e4 {[%clk 0:01:41]}  f6 {[%clk 0:00:12]} 36. Rd1 {[%clk 0:01:40]}  Rd8 {[%clk 0:00:13]} 37. Ke2 {[%clk 0:01:39]}  Re8 {[%clk 0:00:13]} 38. Kf3 {[%clk 0:01:38]}  Rb8 {[%clk 0:00:12]} 39. Nc7 {[%clk 0:01:33]}  Ba3 {[%clk 0:00:11]} 40. Nb5 {[%clk 0:01:32]}  Bb2 {[%clk 0:00:10]} 41. Rd7+ {[%clk 0:01:32]}  Kh6 {[%clk 0:00:10]} 42. Rd5 {[%clk 0:01:28]}  Bd4 {[%clk 0:00:09]} 43. Ke2 {[%clk 0:01:25]}  Re8 {[%clk 0:00:07]} 44. Kf3 {[%clk 0:01:24]}  Rb8 {[%clk 0:00:07]} 45. Rd7 {[%clk 0:01:22]}  Rb6 {[%clk 0:00:06]} 46. Ra7 {[%clk 0:01:17]}  Rb8 {[%clk 0:00:06]} 47. Rxa5 {[%clk 0:01:16]}  Rd8 {[%clk 0:00:06]} 48. Ra6 {[%clk 0:01:15]}  Ba1 {[%clk 0:00:06]} 49. Ke2 {[%clk 0:01:10]}  Kg7 {[%clk 0:00:04]} 50. a5 {[%clk 0:01:09]}  Re8 {[%clk 0:00:04]} 51. Kf3 {[%clk 0:01:08]}  Rd8 {[%clk 0:00:05]} 52. Rd6 {[%clk 0:01:08]}  Ra8 {[%clk 0:00:05]} 53. a6 {[%clk 0:01:08]}  g5 {[%clk 0:00:06]} 54. a7 {[%clk 0:01:08]}  g4+ {[%clk 0:00:05]} 55. Ke2 {[%clk 0:01:07]}  Kg6 {[%clk 0:00:05]} 56. Rd7 {[%clk 0:01:06]}  Bd4 {[%clk 0:00:04]} 57. Rb7 {[%clk 0:01:05]}  f5 {[%clk 0:00:03]} 58. e5 {[%clk 0:01:04]}  Bxe5 {[%clk 0:00:02]} 59. fxe5 {[%clk 0:01:04]}  f4 {[%clk 0:00:03]} 60. Rb8 {[%clk 0:01:03]}  Kf5 {[%clk 0:00:03]} 61. Rxa8 {[%clk 0:01:02]} 1-0


[Site "https://www.chess.com"]

[Event "Titled Tuesday Blitz February 22 Early 2022"]
[White "Ishbaev, Alibek"]
[Black "Martins, Bruno Andre Leite"]
[WhiteFideId "14205017"]
[BlackFideId "1942255"]
[WhiteElo "2383"]
[BlackElo "2137"]
[Result "0-1"]
[Round "05"]
[TimeControl "180+1"]
[Date "2022.02.22"]
[WhiteClock "0:00:01"]
[BlackClock "0:00:08"]

1. c4 {[%clk 0:02:51]}  Nf6 {[%clk 0:02:49]} 2. Nc3 {[%clk 0:02:50]}  g6 {[%clk 0:02:49]} 3. e4 {[%clk 0:02:50]}  d6 {[%clk 0:02:48]} 4. g3 {[%clk 0:02:51]}  Bg7 {[%clk 0:02:49]} 5. Bg2 {[%clk 0:02:51]}  O-O {[%clk 0:02:50]} 6. Nge2 {[%clk 0:02:52]}  c5 {[%clk 0:02:49]} 7. O-O {[%clk 0:02:52]}  Nc6 {[%clk 0:02:49]} 8. d3 {[%clk 0:02:53]}  Ne8 {[%clk 0:02:50]} 9. f4 {[%clk 0:02:51]}  Nc7 {[%clk 0:02:49]} 10. f5 {[%clk 0:02:52]}  e6 {[%clk 0:02:42]} 11. g4 {[%clk 0:02:50]}  Ne5 {[%clk 0:02:25]} 12. h3 {[%clk 0:02:48]}  Rb8 {[%clk 0:02:24]} 13. a4 {[%clk 0:02:40]}  a6 {[%clk 0:02:24]} 14. a5 {[%clk 0:02:30]}  b5 {[%clk 0:02:24]} 15. axb6 {[%clk 0:02:30]}  Rxb6 {[%clk 0:02:23]} 16. Rb1 {[%clk 0:02:24]}  Bb7 {[%clk 0:02:17]} 17. Be3 {[%clk 0:02:18]}  Bc6 {[%clk 0:01:57]} 18. Qd2 {[%clk 0:02:07]}  Rb3 {[%clk 0:01:29]} 19. Bh6 {[%clk 0:02:03]}  f6 {[%clk 0:00:54]} 20. Bxg7 {[%clk 0:01:47]}  Kxg7 {[%clk 0:00:55]} 21. Nf4 {[%clk 0:01:31]}  Qe7 {[%clk 0:00:48]} 22. Rf2 {[%clk 0:01:22]}  exf5 {[%clk 0:00:20]} 23. gxf5 {[%clk 0:01:20]}  g5 {[%clk 0:00:20]} 24. Nh5+ {[%clk 0:01:06]}  Kf7 {[%clk 0:00:21]} 25. Rd1 {[%clk 0:00:46]}  Rfb8 {[%clk 0:00:19]} 26. d4 {[%clk 0:00:39]}  Rxb2 {[%clk 0:00:18]} 27. Qxb2 {[%clk 0:00:39]}  Rxb2 {[%clk 0:00:18]} 28. Rxb2 {[%clk 0:00:39]}  Nxc4 {[%clk 0:00:18]} 29. Re2 {[%clk 0:00:34]}  cxd4 {[%clk 0:00:18]} 30. Rxd4 {[%clk 0:00:34]}  Ne5 {[%clk 0:00:13]} 31. Ng3 {[%clk 0:00:26]}  Nb5 {[%clk 0:00:13]} 32. Nxb5 {[%clk 0:00:23]}  axb5 {[%clk 0:00:12]} 33. Rc2 {[%clk 0:00:21]}  Qa7 {[%clk 0:00:11]} 34. Ne2 {[%clk 0:00:19]}  b4 {[%clk 0:00:09]} 35. Kh2 {[%clk 0:00:19]}  b3 {[%clk 0:00:10]} 36. Rb2 {[%clk 0:00:16]}  Qa3 {[%clk 0:00:09]} 37. Rdd2 {[%clk 0:00:15]}  Nc4 {[%clk 0:00:09]} 38. Nd4 {[%clk 0:00:14]}  Nxd2 {[%clk 0:00:07]} 39. Rxd2 {[%clk 0:00:12]}  Qb4 {[%clk 0:00:07]} 40. Nxb3 {[%clk 0:00:08]}  Qxb3 {[%clk 0:00:07]} 41. Rxd6 {[%clk 0:00:09]}  Qb8 {[%clk 0:00:08]} 42. e5 {[%clk 0:00:08]}  Bxg2 {[%clk 0:00:09]} 43. Rxf6+ {[%clk 0:00:05]}  Kg7 {[%clk 0:00:09]} 44. Re6 {[%clk 0:00:04]}  Qb2 {[%clk 0:00:08]} 45. Kg3 {[%clk 0:00:01]}  Bd5 {[%clk 0:00:08]} 0-1


[Site "https://www.chess.com"]

[Event "Titled Tuesday Blitz February 22 Early 2022"]
[White "Ivanisevic, Ivan"]
[Black "Aaditya Dhingra"]
[WhiteFideId "912417"]
[BlackFideId "25678191"]
[WhiteElo "2495"]
[BlackElo "1789"]
[Result "1-0"]
[Round "05"]
[TimeControl "180+1"]
[Date "2022.02.22"]
[WhiteClock "0:00:33"]
[BlackClock "0:00:06"]

1. e4 {[%clk 0:02:56]}  e5 {[%clk 0:02:57]} 2. Nf3 {[%clk 0:02:56]}  Nc6 {[%clk 0:02:57]} 3. Nc3 {[%clk 0:02:56]}  Nf6 {[%clk 0:02:55]} 4. Bb5 {[%clk 0:02:56]}  Bb4 {[%clk 0:02:54]} 5. O-O {[%clk 0:02:54]}  O-O {[%clk 0:02:48]} 6. d3 {[%clk 0:02:54]}  Bxc3 {[%clk 0:02:45]} 7. bxc3 {[%clk 0:02:55]}  d6 {[%clk 0:02:45]} 8. Bg5 {[%clk 0:02:53]}  Qe7 {[%clk 0:02:41]} 9. Re1 {[%clk 0:02:46]}  a6 {[%clk 0:02:39]} 10. Ba4 {[%clk 0:02:45]}  Nd8 {[%clk 0:02:36]} 11. d4 {[%clk 0:02:35]}  Ne6 {[%clk 0:02:35]} 12. Bh4 {[%clk 0:02:29]}  Nf4 {[%clk 0:02:33]} 13. Nd2 {[%clk 0:02:23]}  Ng6 {[%clk 0:02:24]} 14. Bg3 {[%clk 0:02:21]}  Bg4 {[%clk 0:02:22]} 15. Qc1 {[%clk 0:02:13]}  h5 {[%clk 0:02:10]} 16. h3 {[%clk 0:02:05]}  h4 {[%clk 0:02:08]} 17. Bh2 {[%clk 0:02:04]}  Bh5 {[%clk 0:01:48]} 18. Nf1 {[%clk 0:02:02]}  c5 {[%clk 0:01:43]} 19. Bb3 {[%clk 0:01:35]}  b5 {[%clk 0:01:40]} 20. dxc5 {[%clk 0:01:29]}  dxc5 {[%clk 0:01:37]} 21. c4 {[%clk 0:01:30]}  Qb7 {[%clk 0:01:09]} 22. Ne3 {[%clk 0:01:26]}  Nxe4 {[%clk 0:00:40]} 23. cxb5 {[%clk 0:01:25]}  Nc3 {[%clk 0:00:29]} 24. Qb2 {[%clk 0:01:20]}  Ne2+ {[%clk 0:00:24]} 25. Kf1 {[%clk 0:00:45]}  Ngf4 {[%clk 0:00:15]} 26. b6 {[%clk 0:00:43]}  Nd4 {[%clk 0:00:11]} 27. Bc4 {[%clk 0:00:40]}  Bf3 {[%clk 0:00:10]} 28. Bxf4 {[%clk 0:00:37]}  exf4 {[%clk 0:00:09]} 29. gxf3 {[%clk 0:00:36]}  Qxf3 {[%clk 0:00:08]} 30. Bd5 {[%clk 0:00:35]}  Qxh3+ {[%clk 0:00:06]} 31. Bg2 {[%clk 0:00:34]}  Qg4 {[%clk 0:00:06]} 32. Nxg4 {[%clk 0:00:33]} 1-0


[Site "https://www.chess.com"]

[Event "Titled Tuesday Blitz February 22 Early 2022"]
[White "Jaracz, Pawel"]
[Black "Shohat, Yotam"]
[WhiteFideId "1102222"]
[BlackFideId "2813955"]
[WhiteElo "2429"]
[BlackElo "2119"]
[Result "1-0"]
[Round "05"]
[TimeControl "180+1"]
[Date "2022.02.22"]
[WhiteClock "0:00:50"]
[BlackClock "0:00:01"]

1. e4 {[%clk 0:03:00]}  c5 {[%clk 0:02:59]} 2. Nf3 {[%clk 0:03:01]}  g6 {[%clk 0:02:56]} 3. d4 {[%clk 0:02:58]}  cxd4 {[%clk 0:02:56]} 4. Nxd4 {[%clk 0:02:58]}  Nc6 {[%clk 0:02:56]} 5. Nc3 {[%clk 0:02:57]}  Bg7 {[%clk 0:02:56]} 6. Be3 {[%clk 0:02:57]}  Nf6 {[%clk 0:02:56]} 7. Bc4 {[%clk 0:02:57]}  O-O {[%clk 0:02:56]} 8. Bb3 {[%clk 0:02:57]}  d6 {[%clk 0:02:56]} 9. f3 {[%clk 0:02:56]}  Bd7 {[%clk 0:02:51]} 10. Qd2 {[%clk 0:02:56]}  Nxd4 {[%clk 0:02:50]} 11. Bxd4 {[%clk 0:02:55]}  b5 {[%clk 0:02:51]} 12. a4 {[%clk 0:02:55]}  bxa4 {[%clk 0:02:48]} 13. Nxa4 {[%clk 0:02:54]}  Be6 {[%clk 0:02:43]} 14. Bxe6 {[%clk 0:02:49]}  fxe6 {[%clk 0:02:42]} 15. O-O {[%clk 0:02:49]}  Nd7 {[%clk 0:02:27]} 16. Bxg7 {[%clk 0:02:47]}  Kxg7 {[%clk 0:02:28]} 17. Kh1 {[%clk 0:02:42]}  e5 {[%clk 0:02:14]} 18. Nc3 {[%clk 0:02:39]}  Nb6 {[%clk 0:02:14]} 19. Ne2 {[%clk 0:02:35]}  Qc7 {[%clk 0:02:07]} 20. b3 {[%clk 0:02:25]}  a5 {[%clk 0:01:43]} 21. f4 {[%clk 0:01:58]}  Qc5 {[%clk 0:01:31]} 22. f5 {[%clk 0:01:53]}  a4 {[%clk 0:00:54]} 23. Qg5 {[%clk 0:01:50]}  Rf6 {[%clk 0:00:48]} 24. Ng3 {[%clk 0:01:46]}  Kf7 {[%clk 0:00:29]} 25. bxa4 {[%clk 0:01:30]}  Nc4 {[%clk 0:00:21]} 26. fxg6+ {[%clk 0:01:24]}  hxg6 {[%clk 0:00:19]} 27. Rxf6+ {[%clk 0:01:24]}  exf6 {[%clk 0:00:20]} 28. Rf1 {[%clk 0:01:24]}  Rxa4 {[%clk 0:00:01]} 29. Qxf6+ {[%clk 0:00:50]} 1-0


[Site "https://www.chess.com"]

[Event "Titled Tuesday Blitz February 22 Early 2022"]
[White "Jobava, Baadur"]
[Black "Grischuk, Alexander"]
[WhiteFideId "13601520"]
[BlackFideId "4126025"]
[WhiteElo "2617"]
[BlackElo "2762"]
[Result "1-0"]
[Round "05"]
[TimeControl "180+1"]
[Date "2022.02.22"]
[WhiteClock "0:00:10"]
[BlackClock "0:00:01"]

1. e4 {[%clk 0:03:00]}  e6 {[%clk 0:03:00]} 2. d4 {[%clk 0:03:00]}  d5 {[%clk 0:02:59]} 3. exd5 {[%clk 0:03:01]}  exd5 {[%clk 0:02:59]} 4. Nf3 {[%clk 0:03:02]}  Nf6 {[%clk 0:02:57]} 5. Bd3 {[%clk 0:03:02]}  Bd6 {[%clk 0:02:57]} 6. O-O {[%clk 0:03:03]}  O-O {[%clk 0:02:57]} 7. h3 {[%clk 0:03:03]}  h6 {[%clk 0:02:49]} 8. Re1 {[%clk 0:03:04]}  Re8 {[%clk 0:02:44]} 9. Rxe8+ {[%clk 0:03:03]}  Qxe8 {[%clk 0:02:45]} 10. Nc3 {[%clk 0:03:04]}  c6 {[%clk 0:02:41]} 11. Ne2 {[%clk 0:03:04]}  Qe7 {[%clk 0:01:59]} 12. Bf4 {[%clk 0:03:04]}  Ne4 {[%clk 0:01:51]} 13. Qc1 {[%clk 0:03:01]}  Bf5 {[%clk 0:01:46]} 14. Qe3 {[%clk 0:03:01]}  Nd7 {[%clk 0:01:41]} 15. Bxd6 {[%clk 0:02:55]}  Qxd6 {[%clk 0:01:42]} 16. Re1 {[%clk 0:02:55]}  Bh7 {[%clk 0:01:04]} 17. Qf4 {[%clk 0:01:51]}  Qxf4 {[%clk 0:00:56]} 18. Nxf4 {[%clk 0:01:52]}  Re8 {[%clk 0:00:46]} 19. h4 {[%clk 0:01:33]}  Nd6 {[%clk 0:00:45]} 20. Bxh7+ {[%clk 0:01:32]}  Kxh7 {[%clk 0:00:45]} 21. Rxe8 {[%clk 0:01:31]}  Nxe8 {[%clk 0:00:46]} 22. Nd3 {[%clk 0:01:30]}  Nd6 {[%clk 0:00:44]} 23. Nfe5 {[%clk 0:01:29]}  Nxe5 {[%clk 0:00:39]} 24. dxe5 {[%clk 0:01:30]}  Nc4 {[%clk 0:00:39]} 25. h5 {[%clk 0:01:26]}  g6 {[%clk 0:00:34]} 26. hxg6+ {[%clk 0:01:27]}  Kxg6 {[%clk 0:00:30]} 27. f3 {[%clk 0:01:12]}  h5 {[%clk 0:00:29]} 28. Kf2 {[%clk 0:00:49]}  Kf5 {[%clk 0:00:29]} 29. f4 {[%clk 0:00:49]}  a5 {[%clk 0:00:23]} 30. Ke2 {[%clk 0:00:43]}  Kg4 {[%clk 0:00:19]} 31. b3 {[%clk 0:00:42]}  Na3 {[%clk 0:00:18]} 32. Kd2 {[%clk 0:00:36]}  Nb5 {[%clk 0:00:14]} 33. Ke3 {[%clk 0:00:33]}  Na3 {[%clk 0:00:08]} 34. c3 {[%clk 0:00:30]}  Nb5 {[%clk 0:00:07]} 35. c4 {[%clk 0:00:29]}  dxc4 {[%clk 0:00:06]} 36. bxc4 {[%clk 0:00:30]}  Nc3 {[%clk 0:00:07]} 37. a3 {[%clk 0:00:27]}  b5 {[%clk 0:00:05]} 38. cxb5 {[%clk 0:00:10]}  cxb5 {[%clk 0:00:06]} 39. Kd4 {[%clk 0:00:09]}  Ne2+ {[%clk 0:00:06]} 40. Ke3 {[%clk 0:00:09]}  Nc3 {[%clk 0:00:06]} 41. Kd4 {[%clk 0:00:10]}  Ne2+ {[%clk 0:00:06]} 42. Ke3 {[%clk 0:00:10]}  Ng3 {[%clk 0:00:06]} 43. Kd4 {[%clk 0:00:09]}  Nf5+ {[%clk 0:00:05]} 44. Kc5 {[%clk 0:00:09]}  b4 {[%clk 0:00:05]} 45. a4 {[%clk 0:00:08]}  Ne3 {[%clk 0:00:03]} 46. Kb5 {[%clk 0:00:08]}  Nxg2 {[%clk 0:00:03]} 47. Kxa5 {[%clk 0:00:08]}  h4 {[%clk 0:00:02]} 48. Kxb4 {[%clk 0:00:08]}  h3 {[%clk 0:00:02]} 49. Nf2+ {[%clk 0:00:09]}  Kg3 {[%clk 0:00:02]} 50. Nxh3 {[%clk 0:00:09]}  Kxh3 {[%clk 0:00:02]} 51. f5 {[%clk 0:00:10]}  Ne3 {[%clk 0:00:02]} 52. a5 {[%clk 0:00:09]}  Nxf5 {[%clk 0:00:02]} 53. a6 {[%clk 0:00:10]}  Ne7 {[%clk 0:00:02]} 54. Kc5 {[%clk 0:00:09]}  Nc8 {[%clk 0:00:03]} 55. Kc6 {[%clk 0:00:10]}  Kg4 {[%clk 0:00:02]} 56. Kb7 {[%clk 0:00:10]}  Ne7 {[%clk 0:00:01]} 57. a7 {[%clk 0:00:10]} 1-0


[Site "https://www.chess.com"]

[Event "Titled Tuesday Blitz February 22 Early 2022"]
[White "Johnson, Ben"]
[Black "Toncheva, Nadya"]
[WhiteFideId "2010917"]
[BlackFideId "2924056"]
[WhiteElo "2210"]
[BlackElo "1920"]
[Result "0-1"]
[Round "05"]
[TimeControl "180+1"]
[Date "2022.02.22"]
[WhiteClock "0:00:02"]
[BlackClock "0:00:55"]

1. Nf3 {[%clk 0:03:00]}  Nf6 {[%clk 0:02:56]} 2. c4 {[%clk 0:02:56]}  e6 {[%clk 0:02:56]} 3. b3 {[%clk 0:02:56]}  c5 {[%clk 0:02:56]} 4. Bb2 {[%clk 0:02:55]}  b6 {[%clk 0:02:56]} 5. g3 {[%clk 0:02:45]}  Bb7 {[%clk 0:02:56]} 6. Bg2 {[%clk 0:02:45]}  Be7 {[%clk 0:02:56]} 7. O-O {[%clk 0:02:45]}  O-O {[%clk 0:02:56]} 8. e3 {[%clk 0:02:41]}  d5 {[%clk 0:02:56]} 9. Ne5 {[%clk 0:02:27]}  Nc6 {[%clk 0:02:55]} 10. Nxc6 {[%clk 0:02:23]}  Bxc6 {[%clk 0:02:53]} 11. Nc3 {[%clk 0:02:12]}  Qd7 {[%clk 0:02:46]} 12. d3 {[%clk 0:02:01]}  Rfd8 {[%clk 0:02:43]} 13. Qc2 {[%clk 0:01:53]}  d4 {[%clk 0:02:30]} 14. Bxc6 {[%clk 0:01:46]}  Qxc6 {[%clk 0:02:25]} 15. exd4 {[%clk 0:01:44]}  Rxd4 {[%clk 0:02:26]} 16. Ne2 {[%clk 0:01:40]}  Rd7 {[%clk 0:02:24]} 17. d4 {[%clk 0:01:37]}  Rad8 {[%clk 0:02:14]} 18. Rad1 {[%clk 0:01:33]}  cxd4 {[%clk 0:02:13]} 19. Rxd4 {[%clk 0:01:31]}  Qf3 {[%clk 0:02:06]} 20. Rxd7 {[%clk 0:01:24]}  Rxd7 {[%clk 0:02:05]} 21. Nd4 {[%clk 0:01:22]}  Qh5 {[%clk 0:01:58]} 22. Re1 {[%clk 0:00:41]}  Bc5 {[%clk 0:01:51]} 23. Rd1 {[%clk 0:00:14]}  e5 {[%clk 0:01:40]} 24. Ne2 {[%clk 0:00:12]}  Qf3 {[%clk 0:01:37]} 25. Rf1 {[%clk 0:00:02]}  Ne4 {[%clk 0:00:58]} 26. Nc1 {[%clk 0:00:02]}  Rd2 {[%clk 0:00:55]} 0-1


[Site "https://www.chess.com"]

[Event "Titled Tuesday Blitz February 22 Early 2022"]
[White "Jumabayev, Rinat"]
[Black "Szpar, Milosz"]
[WhiteFideId "13702661"]
[BlackFideId "1184989"]
[WhiteElo "2561"]
[BlackElo "2447"]
[Result "0-1"]
[Round "05"]
[TimeControl "180+1"]
[Date "2022.02.22"]
[WhiteClock "0:00:03"]
[BlackClock "0:00:03"]

1. d4 {[%clk 0:03:00]}  Nf6 {[%clk 0:02:55]} 2. Nf3 {[%clk 0:03:00]}  e6 {[%clk 0:02:54]} 3. Bf4 {[%clk 0:03:01]}  d5 {[%clk 0:02:52]} 4. e3 {[%clk 0:03:01]}  Bd6 {[%clk 0:02:52]} 5. Bg3 {[%clk 0:03:01]}  c5 {[%clk 0:02:47]} 6. dxc5 {[%clk 0:02:55]}  Bxc5 {[%clk 0:02:39]} 7. c4 {[%clk 0:02:54]}  O-O {[%clk 0:02:38]} 8. Nc3 {[%clk 0:02:53]}  Nc6 {[%clk 0:02:38]} 9. a3 {[%clk 0:02:53]}  a6 {[%clk 0:02:36]} 10. Qc2 {[%clk 0:02:50]}  Qa5 {[%clk 0:02:21]} 11. Nd2 {[%clk 0:02:40]}  Ba7 {[%clk 0:01:47]} 12. Nb3 {[%clk 0:02:28]}  Qd8 {[%clk 0:01:47]} 13. Rd1 {[%clk 0:02:28]}  Qe7 {[%clk 0:01:43]} 14. Bd3 {[%clk 0:01:46]}  dxc4 {[%clk 0:01:29]} 15. Bxc4 {[%clk 0:01:47]}  b5 {[%clk 0:01:29]} 16. Bd3 {[%clk 0:01:47]}  Rd8 {[%clk 0:01:13]} 17. Ne4 {[%clk 0:01:01]}  Bb7 {[%clk 0:00:59]} 18. Bd6 {[%clk 0:00:55]}  Qe8 {[%clk 0:00:45]} 19. Nxf6+ {[%clk 0:00:50]}  gxf6 {[%clk 0:00:46]} 20. Bxh7+ {[%clk 0:00:49]}  Kg7 {[%clk 0:00:46]} 21. Be4 {[%clk 0:00:41]}  Rac8 {[%clk 0:00:44]} 22. Qe2 {[%clk 0:00:37]}  f5 {[%clk 0:00:44]} 23. Bf3 {[%clk 0:00:21]}  Qh8 {[%clk 0:00:40]} 24. O-O {[%clk 0:00:17]}  Rxd6 {[%clk 0:00:36]} 25. Rxd6 {[%clk 0:00:17]}  Bb8 {[%clk 0:00:36]} 26. Rfd1 {[%clk 0:00:18]}  Rd8 {[%clk 0:00:37]} 27. Qc2 {[%clk 0:00:02]}  Rxd6 {[%clk 0:00:13]} 28. Rxd6 {[%clk 0:00:02]}  Bxd6 {[%clk 0:00:14]} 29. Bxc6 {[%clk 0:00:02]}  Qxh2+ {[%clk 0:00:14]} 30. Kf1 {[%clk 0:00:02]}  Qh1+ {[%clk 0:00:13]} 31. Ke2 {[%clk 0:00:02]}  Bxc6 {[%clk 0:00:13]} 32. Qxc6 {[%clk 0:00:03]}  Be5 {[%clk 0:00:14]} 33. Qc2 {[%clk 0:00:03]}  Qxg2 {[%clk 0:00:14]} 34. Nd2 {[%clk 0:00:03]}  Bg3 {[%clk 0:00:12]} 35. Qc3+ {[%clk 0:00:01]}  Kg6 {[%clk 0:00:12]} 36. Kd3 {[%clk 0:00:02]}  Bxf2 {[%clk 0:00:12]} 37. Qd4 {[%clk 0:00:03]}  Qg4 {[%clk 0:00:07]} 38. Qd8 {[%clk 0:00:01]}  Bg3 {[%clk 0:00:03]} 39. Qg8+ {[%clk 0:00:01]}  Kf6 {[%clk 0:00:03]} 40. Qh8+ {[%clk 0:00:02]}  Qg7 {[%clk 0:00:04]} 41. Qd8+ {[%clk 0:00:02]}  Kg6 {[%clk 0:00:04]} 42. Kc2 {[%clk 0:00:03]}  Be5 {[%clk 0:00:04]} 43. Nf3 {[%clk 0:00:03]}  Bf6 {[%clk 0:00:04]} 44. Qd1 {[%clk 0:00:02]}  Qh6 {[%clk 0:00:03]} 45. Qg1+ {[%clk 0:00:02]}  Kh7 {[%clk 0:00:04]} 46. Kd3 {[%clk 0:00:02]}  Qg6 {[%clk 0:00:04]} 47. Qh2+ {[%clk 0:00:02]}  Kg7 {[%clk 0:00:05]} 48. Qc2 {[%clk 0:00:03]}  f4+ {[%clk 0:00:05]} 49. e4 {[%clk 0:00:04]}  Qg3 {[%clk 0:00:05]} 50. Qe2 {[%clk 0:00:04]}  Be7 {[%clk 0:00:05]} 51. e5 {[%clk 0:00:04]}  Bc5 {[%clk 0:00:03]} 52. Qf1 {[%clk 0:00:04]}  Be3 {[%clk 0:00:03]} 53. Ke2 {[%clk 0:00:04]}  Qg6 {[%clk 0:00:03]} 54. Qd1 {[%clk 0:00:04]}  Qg2+ {[%clk 0:00:03]} 55. Kd3 {[%clk 0:00:05]}  Qxb2 {[%clk 0:00:03]} 56. a4 {[%clk 0:00:02]}  Qa3+ {[%clk 0:00:03]} 57. Ke2 {[%clk 0:00:03]}  Qa2+ {[%clk 0:00:03]} 58. Kd3 {[%clk 0:00:03]}  Qc4# {[%clk 0:00:03]} 0-1


[Site "https://www.chess.com"]

[Event "Titled Tuesday Blitz February 22 Early 2022"]
[White "Karabalis, Harilos"]
[Black "Fonseca Manrique, Enrique"]
[WhiteFideId "4621808"]
[BlackFideId "5114330"]
[WhiteElo "2168"]
[BlackElo "2590"]
[Result "1-0"]
[Round "05"]
[TimeControl "180+1"]
[Date "2022.02.22"]
[WhiteClock "0:01:23"]
[BlackClock "0:00:40"]

1. e4 {[%clk 0:03:00]}  c5 {[%clk 0:03:00]} 2. a3 {[%clk 0:02:59]}  Nf6 {[%clk 0:02:57]} 3. Nc3 {[%clk 0:02:57]}  Nc6 {[%clk 0:02:49]} 4. Nf3 {[%clk 0:02:55]}  d5 {[%clk 0:02:44]} 5. exd5 {[%clk 0:02:42]}  Nxd5 {[%clk 0:02:44]} 6. Bc4 {[%clk 0:02:38]}  e6 {[%clk 0:02:39]} 7. O-O {[%clk 0:02:36]}  Be7 {[%clk 0:02:39]} 8. Ne4 {[%clk 0:02:32]}  O-O {[%clk 0:02:39]} 9. d3 {[%clk 0:02:32]}  b6 {[%clk 0:02:29]} 10. Re1 {[%clk 0:02:30]}  Bb7 {[%clk 0:02:29]} 11. Ba2 {[%clk 0:02:25]}  Rc8 {[%clk 0:02:23]} 12. Ng3 {[%clk 0:02:23]}  Nd4 {[%clk 0:02:12]} 13. Ne5 {[%clk 0:02:21]}  g6 {[%clk 0:01:37]} 14. c3 {[%clk 0:02:07]}  Nc6 {[%clk 0:01:32]} 15. Bh6 {[%clk 0:02:05]}  Re8 {[%clk 0:01:31]} 16. Ng4 {[%clk 0:01:55]}  Bg5 {[%clk 0:01:19]} 17. Bxd5 {[%clk 0:01:39]}  Qxd5 {[%clk 0:01:08]} 18. Ne4 {[%clk 0:01:35]}  Qf5 {[%clk 0:00:48]} 19. Bxg5 {[%clk 0:01:25]}  Ne7 {[%clk 0:00:40]} 20. Nh6+ {[%clk 0:01:23]} 1-0


[Site "https://www.chess.com"]